bitfinex/quotes_BTCUSD_20250414
["timestamp","ask_amount","ask_price","bid_price","bid_amount"]
[1744628895318,0.236035,84733.0,84732.0,0.0008424]
[1744628896347,0.238035,84733.0,84732.0,0.0008424]
[1744628897943,0.002,84733.0,84732.0,0.2368804]
[1744628898119,0.002,84733.0,84732.0,0.35772194]
[1744628899019,0.002,84733.0,84732.0,0.0018424]
[1744628899439,0.578035,84733.0,84732.0,0.0018424]
[1744628899846,0.578035,84733.0,84732.0,0.0008424]
[1744628900017,0.69887654,84733.0,84732.0,0.0008424]
[1744628900225,0.74527654,84733.0,84732.0,0.0008424]
[1744628900450,0.74327654,84733.0,84732.0,0.0008424]
[1744628900909,0.74327654,84733.0,84730.0,0.0008424]
[1744628900910,0.576041,84731.0,84730.0,8e-07]
[1744628901113,0.69688254,84731.0,84730.0,8e-07]
[1744628901312,1.11338254,84731.0,84730.0,8e-07]
[1744628901963,1.12792339,84731.0,84730.0,8e-07]
[1744628902377,2.15223298,84731.0,84730.0,8e-07]
[1744628902577,2.2675455,84731.0,84730.0,8e-07]
[1744628902784,2.2685455,84731.0,84730.0,8e-07]
[1744628902979,0.63873485,84712.0,84711.0,0.002]
[1744628903188,1.35863639,84712.0,84711.0,0.00213848]
[1744628903413,1.3941785,84712.0,84711.0,0.00213848]
[1744628903615,1.35273774,84712.0,84711.0,0.00213848]
[1744628904413,1.36073774,84712.0,84711.0,0.00213848]
[1744628904675,1.31263774,84712.0,84711.0,0.00213848]
[1744628905174,1.31663774,84712.0,84711.0,0.00213848]
[1744628905348,1.31263774,84712.0,84711.0,0.00213848]
[1744628905512,1.30463774,84712.0,84711.0,0.00213848]
[1744628905716,1.30863774,84712.0,84711.0,0.00213848]
[1744628905939,1.31463774,84712.0,84711.0,0.00213848]
[1744628907209,1.1937962,84712.0,84711.0,0.00213848]
[1744628908485,0.7772962,84712.0,84711.0,0.00213848]
[1744628910931,0.19256,84712.0,84711.0,0.00213848]
[1744628911306,0.246094,84712.0,84711.0,0.00213848]
[1744628911712,0.01,84712.0,84711.0,0.23823448]
[1744628912279,0.011804,84715.0,84712.0,0.236092]
[1744628912483,0.003,84712.0,84711.0,0.25003848]
[1744628912689,0.005,84712.0,84711.0,0.25003848]
[1744628913785,0.005,84712.0,84711.0,0.29923848]
[1744628913963,0.005,84712.0,84711.0,0.42008002]
[1744628914305,0.007,84712.0,84711.0,0.42008002]
[1744628914822,0.005,84712.0,84711.0,0.42008002]
[1744628915245,0.247835,84734.0,84731.0,0.236041]
[1744628915439,0.34,84734.0,84731.0,0.247843]
[1744628915662,0.011801,84732.0,84727.0,0.011802]
[1744628915867,0.236055,84726.0,84722.0,0.247869]
[1744628916062,0.011802,84729.0,84722.0,0.247869]
[1744628916063,0.247849,84729.0,84724.0,0.247862]
[1744628916463,0.011802,84729.0,84726.0,0.236054]
[1744628916769,0.247846,84730.0,84727.0,0.236051]
[1744628917225,0.003,84729.0,84727.0,0.236051]
[1744628918308,0.011803,84720.0,84716.0,0.011804]
[1744628918508,0.236043,84731.0,84720.0,0.011803]
[1744628918509,0.003,84730.0,84720.0,0.011803]
[1744628918707,0.247862,84725.0,84722.0,0.011803]
[1744628919050,0.236055,84726.0,84723.0,0.247865]
[1744628919246,0.236053,84727.0,84724.0,0.236059]
[1744628919439,0.011802,84727.0,84723.0,0.011803]
[1744628919739,0.011802,84725.0,84722.0,0.236065]
[1744628919941,0.014802,84725.0,84723.0,0.236062]
[1744628920142,0.014802,84725.0,84722.0,0.011803]
[1744628920507,0.25086,84725.0,84722.0,0.011803]
[1744628920729,0.016802,84725.0,84722.0,0.247866]
[1744628921147,0.241057,84725.0,84722.0,0.247866]
[1744628921293,0.241057,84725.0,84705.0,0.330556]
[1744628921294,0.236094,84712.0,84711.0,0.00213848]
[1744628921487,0.011804,84714.0,84711.0,0.00213848]
[1744628921691,0.236091,84713.0,84711.0,0.00213848]
[1744628922324,0.236094,84712.0,84711.0,0.00213848]
[1744628922685,0.236094,84712.0,84711.0,0.00313848]
[1744628922855,0.236094,84712.0,84711.0,0.00213848]
[1744628923091,0.236094,84712.0,84711.0,0.00313848]
[1744628923473,0.236094,84712.0,84711.0,0.00213848]
[1744628923669,0.236094,84712.0,84711.0,0.00313848]
[1744628924272,0.237094,84712.0,84711.0,0.00313848]
[1744628925464,0.237094,84712.0,84711.0,0.00213848]
[1744628925669,0.239094,84712.0,84711.0,0.00213848]
[1744628926210,0.579094,84712.0,84711.0,0.00213848]
[1744628927420,0.578094,84712.0,84711.0,0.00213848]
[1744628927812,0.581094,84712.0,84711.0,0.00213848]
[1744628928353,0.70193554,84712.0,84711.0,0.00213848]
[1744628928489,0.69993554,84712.0,84711.0,0.00213848]
[1744628928694,1.11643554,84712.0,84711.0,0.00213848]
[1744628928994,1.12143554,84712.0,84711.0,0.00213848]
[1744628929621,1.11343554,84712.0,84711.0,0.00213848]
[1744628929823,1.12443554,84712.0,84711.0,0.00313848]
[1744628933840,1.30307554,84712.0,84711.0,0.00313848]
[1744628936000,1.182234,84712.0,84711.0,0.00313848]
[1744628941547,0.94614,84712.0,84711.0,0.00313848]
[1744628941778,0.18964,84712.0,84711.0,0.00313848]
[1744628942336,0.765734,84712.0,84711.0,0.00313848]
[1744628942621,0.754734,84712.0,84711.0,0.00213848]
[1744628942854,0.757734,84712.0,84711.0,0.00213848]
[1744628943056,0.761734,84712.0,84711.0,0.00213848]
[1744628944474,1.31253458,84712.0,84711.0,0.00213848]
[1744628944673,1.29907554,84712.0,84711.0,0.00213848]
[1744628945295,1.29507554,84712.0,84711.0,0.00213848]
[1744628945496,1.30207554,84712.0,84711.0,0.00213848]
[1744628946074,1.29907554,84712.0,84711.0,0.00213848]
[1744628946278,1.30307554,84712.0,84711.0,0.00213848]
[1744628946477,0.94614,84712.0,84711.0,0.00213848]
[1744628946689,1.182234,84712.0,84711.0,0.00213848]
[1744628946900,1.171234,84712.0,84711.0,0.00213848]
[1744628947100,1.176234,84712.0,84711.0,0.00213848]
[1744628948028,0.997594,84712.0,84711.0,0.00213848]
[1744628948450,0.992594,84712.0,84711.0,0.00213848]
[1744628948852,0.998594,84712.0,84711.0,0.00213848]
[1744628949160,0.995594,84712.0,84711.0,0.00213848]
[1744628949541,0.581094,84712.0,84711.0,0.00213848]
[1744628953066,0.759734,84712.0,84711.0,0.00213848]
[1744628954587,0.18364,84712.0,84711.0,0.00213848]
[1744628954891,0.18364,84712.0,84711.0,0.04893848]
[1744628955230,0.005,84712.0,84711.0,0.04893848]
[1744628955438,0.005,84712.0,84711.0,0.16978002]
[1744628955573,0.003,84712.0,84711.0,0.18655363]
[1744628955775,0.003,84712.0,84711.0,0.23215363]
[1744628956019,0.002,84712.0,84711.0,0.23215363]
[1744628956611,0.351802,84727.0,84724.0,0.011803]
[1744628957001,0.34,84727.0,84725.0,0.01677361]
[1744628957206,0.34,84727.0,84725.0,0.25282961]
[1744628957429,0.34,84727.0,84726.0,0.0073749]
[1744628957803,0.34,84727.0,84726.0,0.01677361]
[1744628958708,0.34,84727.0,84726.0,0.0073749]
[1744628958931,0.247857,84726.0,84723.0,0.0073749]
[1744628959323,0.23606,84724.0,84722.0,0.0073749]
[1744628959535,0.247861,84725.0,84722.0,0.0073749]
[1744628959727,0.236062,84724.0,84722.0,0.0073749]
[1744628959925,0.011803,84724.0,84721.0,0.0073749]
[1744628960125,0.003,84727.0,84724.0,0.011803]
[1744628960451,0.014802,84727.0,84724.0,0.011803]
[1744628960598,0.249855,84727.0,84724.0,0.011803]
[1744628960807,0.249855,84727.0,84724.0,0.0191779]
[1744628961181,0.002,84727.0,84725.0,0.236057]
[1744628961564,0.002,84727.0,84724.0,0.011803]
[1744628961726,0.002,84727.0,84724.0,0.247861]
[1744628961924,0.587852,84728.0,84724.0,0.247861]
[1744628962149,0.587852,84728.0,84725.0,0.00737473]
[1744628962620,0.001,84727.0,84725.0,0.24343173]
[1744628963028,0.351801,84737.0,84729.0,0.011802]
[1744628963290,0.34,84731.0,84729.0,0.011802]
[1744628963784,0.34,84731.0,84729.0,0.247847]
[1744628964353,0.34,84734.0,84731.0,0.011802]
[1744628964560,0.34,84734.0,84732.0,0.236038]
[1744628964990,0.34,84734.0,84733.0,0.00737425]
[1744628965492,0.011799,84747.0,84739.0,0.236018]
[1744628965847,0.247805,84744.0,84740.0,0.236015]
[1744628966045,0.247805,84744.0,84740.0,0.247815]
[1744628966406,0.236008,84743.0,84741.0,0.00737425]
[1744628966650,0.576008,84743.0,84741.0,0.00737425]
[1744628966854,0.011801,84734.0,84729.0,0.011802]
[1744628967097,0.011801,84734.0,84730.0,0.247845]
[1744628967292,0.247834,84734.0,84731.0,0.247842]
[1744628967493,0.23603,84735.0,84731.0,0.25521596]
[1744628967671,0.011801,84733.0,84721.0,0.011803]
[1744628967873,0.011802,84730.0,84727.0,0.011802]
[1744628968059,0.011802,84731.0,84728.0,0.01917633]
[1744628968236,0.011802,84731.0,84728.0,0.00737433]
[1744628968237,0.236045,84730.0,84728.0,0.00737433]
[1744628968442,0.236045,84730.0,84729.0,0.00737433]
[1744628968974,0.236045,84730.0,84729.0,0.005]
[1744628969177,0.236045,84730.0,84729.0,0.002]
[1744628969384,0.236049,84728.0,84727.0,0.01674198]
[1744628969757,0.236049,84728.0,84727.0,0.00936765]
[1744628970328,0.247859,84726.0,84723.0,0.011803]
[1744628970440,0.247859,84726.0,84722.0,0.02854498]
[1744628970801,0.236061,84724.0,84722.0,0.01674198]
[1744628971323,0.011804,84716.0,84713.0,0.0494]
[1744628971521,0.247893,84714.0,84710.0,0.247901]
[1744628971731,0.236092,84713.0,84711.0,0.00213848]
[1744628972184,0.34,84712.0,84711.0,0.00213848]
[1744628972801,0.34,84712.0,84711.0,0.00313848]
[1744628973144,0.34,84712.0,84711.0,0.00213848]
[1744628973345,0.341,84712.0,84711.0,0.00213848]
[1744628975697,0.001,84712.0,84711.0,0.00213848]
[1744628977962,0.001,84712.0,84711.0,0.23823448]
[1744628978169,0.001,84712.0,84711.0,0.40887602]
[1744628978770,0.011799,84750.0,84741.0,0.0118]
[1744628978975,0.23601,84742.0,84739.0,0.0118]
[1744628979351,0.0118,84740.0,84737.0,0.247824]
[1744628979558,0.0118,84740.0,84736.0,0.061601]
[1744628979762,0.34,84737.0,84736.0,0.0498]
[1744628980267,0.236022,84738.0,84736.0,0.0498]
[1744628980443,0.34,84737.0,84736.0,0.0498]
[1744628981140,0.342,84737.0,84736.0,0.0498]
[1744628981344,0.002,84737.0,84736.0,0.0498]
[1744628981527,0.004,84737.0,84736.0,0.0498]
[1744628982375,0.002,84737.0,84736.0,0.0498]
[1744628982605,0.34,84744.0,84741.0,0.236012]
[1744628982798,0.236017,84740.0,84737.0,0.011801]
[1744628982980,0.247815,84741.0,84737.0,0.247823]
[1744628983382,0.247815,84741.0,84738.0,0.247821]
[1744628983659,0.247815,84741.0,84738.0,0.011801]
[1744628983837,0.23602,84739.0,84736.0,0.0498]
[1744628984040,0.24782,84739.0,84736.0,0.285826]
[1744628984425,0.24782,84739.0,84736.0,0.297627]
[1744628984832,0.0118,84739.0,84736.0,0.297627]
[1744628985035,0.587809,84743.0,84739.0,0.236017]
[1744628985221,0.24781,84742.0,84739.0,0.0118]
[1744628985597,0.247813,84741.0,84738.0,0.011801]
[1744628985786,0.247813,84741.0,84737.0,0.247823]
[1744628985979,0.236019,84739.0,84736.0,0.297626]
[1744628986137,0.0118,84740.0,84737.0,0.247823]
[1744628986339,0.0118,84739.0,84736.0,0.061601]
[1744628986546,0.24782,84739.0,84736.0,0.297627]
[1744628986855,0.247819,84739.0,84736.0,0.297627]
[1744628987059,0.0118,84739.0,84736.0,0.297627]
[1744628987272,0.247821,84739.0,84736.0,0.0498]
[1744628987479,0.0118,84740.0,84737.0,0.236023]
[1744628987879,0.0118,84740.0,84738.0,0.236021]
[1744628988080,0.0118,84740.0,84736.0,0.285826]
[1744628988081,0.236021,84738.0,84736.0,0.0498]
[1744628988279,0.247818,84739.0,84736.0,0.285827]
[1744628988820,0.247818,84739.0,84736.0,0.297628]
[1744628989798,0.247818,84739.0,84736.0,0.0498]
[1744628990200,0.236021,84738.0,84736.0,0.0498]
[1744628990746,0.011801,84732.0,84728.0,0.0499]
[1744628990920,0.011802,84731.0,84729.0,0.00737363]
[1744628991522,0.236043,84730.0,84729.0,0.00737363]
[1744628991724,0.236043,84730.0,84728.0,0.0499]
[1744628991725,0.236043,84730.0,84728.0,0.0509]
[1744628992054,0.247843,84731.0,84728.0,0.286949]
[1744628992230,0.011802,84731.0,84728.0,0.297751]
[1744628992547,0.247838,84733.0,84730.0,0.011802]
[1744628992727,0.236039,84732.0,84730.0,0.011802]
[1744628993287,0.247838,84733.0,84730.0,0.011802]
[1744628993497,0.011801,84734.0,84730.0,0.247845]
[1744628993693,0.011801,84733.0,84730.0,0.247845]
[1744628993908,0.011801,84733.0,84730.0,0.249845]
[1744628994109,0.236035,84733.0,84731.0,0.011802]
[1744628994422,0.247835,84734.0,84730.0,0.249843]
[1744628995045,0.247835,84734.0,84730.0,0.250843]
[1744628995297,0.247836,84733.0,84730.0,0.012802]
[1744628995622,0.247836,84733.0,84730.0,0.011802]
[1744628995781,0.247836,84733.0,84730.0,0.250844]
[1744628995961,0.247836,84733.0,84730.0,0.248844]
[1744628996323,0.247836,84733.0,84730.0,0.250844]
[1744628996682,0.011801,84733.0,84731.0,0.23604]
[1744628996890,0.247837,84733.0,84730.0,0.250845]
[1744628997301,0.236038,84732.0,84730.0,0.249845]
[1744628997523,0.236038,84732.0,84730.0,0.003]
[1744628997720,0.25983672,84733.0,84730.0,0.239043]
[1744628998057,0.01199972,84733.0,84732.0,0.236038]
[1744628998235,0.236032,84735.0,84732.0,0.247839]
[1744628998445,0.247836,84734.0,84731.0,0.247842]
[1744628998646,0.236036,84733.0,84731.0,0.011802]
[1744628998842,0.247833,84735.0,84732.0,0.011801]
[1744628999045,0.247834,84734.0,84731.0,0.249842]
[1744628999265,0.247834,84734.0,84731.0,0.013802]
[1744628999472,0.247834,84734.0,84732.0,0.001]
[1744628999937,0.01179284,84735.0,84734.0,0.236032]
[1744629000194,0.34,84743.0,84740.0,0.0118]
[1744629000429,0.34,84743.0,84732.0,0.011801]
[1744629000430,0.00903491,84760.0,84755.0,0.011798]
[1744629000693,0.23599,84749.0,84748.0,0.0456]
[1744629000927,0.236021,84738.0,84737.0,0.0495]
[1744629001154,0.0118,84740.0,84737.0,0.011801]
[1744629001405,0.0118,84739.0,84735.0,0.247829]
[1744629001875,0.236017,84740.0,84737.0,0.236024]
[1744629002097,0.236017,84740.0,84737.0,0.247825]
[1744629002487,0.247817,84740.0,84737.0,0.011801]
[1744629002889,0.247817,84740.0,84737.0,0.247825]
[1744629003217,0.0118,84740.0,84738.0,0.236021]
[1744629003420,0.247816,84740.0,84737.0,0.011801]
[1744629003575,0.247816,84740.0,84737.0,0.247824]
[1744629003786,0.236024,84737.0,84735.0,0.011801]
[1744629003962,0.247818,84739.0,84737.0,0.236023]
[1744629003963,0.0118,84739.0,84737.0,0.236023]
[1744629004367,0.0118,84742.0,84739.0,0.247816]
[1744629004581,0.247811,84742.0,84739.0,0.247816]
[1744629004799,0.247812,84742.0,84739.0,0.247816]
[1744629005007,0.235983,84752.0,84746.0,0.011799]
[1744629005256,0.235996,84747.0,84744.0,0.236003]
[1744629005630,0.011799,84748.0,84745.0,0.2478]
[1744629005836,0.011799,84746.0,84742.0,0.24781]
[1744629006186,0.236007,84744.0,84741.0,0.0118]
[1744629006531,0.247799,84746.0,84742.0,0.247808]
[1744629006738,0.011799,84750.0,84744.0,0.0118]
[1744629006920,0.0118,84744.0,84740.0,0.247815]
[1744629007124,0.0118,84741.0,84738.0,0.011801]
[1744629007344,0.236017,84740.0,84737.0,0.236022]
[1744629007545,0.236035,84734.0,84730.0,0.011802]
[1744629007883,0.236024,84737.0,84732.0,0.236037]
[1744629008080,0.011801,84737.0,84734.0,0.247833]
[1744629008257,0.247833,84734.0,84733.0,0.00737324]
[1744629008440,0.247833,84735.0,84733.0,0.00737324]
[1744629008635,0.236032,84734.0,84733.0,0.00737324]
[1744629008840,0.011801,84736.0,84733.0,0.00737324]
[1744629009039,0.247804,84745.0,84733.0,0.00737324]
[1744629009244,0.236005,84744.0,84741.0,0.236011]
[1744629009445,0.236014,84741.0,84739.0,0.0118]
[1744629009667,0.236016,84740.0,84738.0,0.011801]
[1744629009870,0.236013,84741.0,84739.0,0.00737324]
[1744629010264,0.236002,84746.0,84742.0,0.0118]
[1744629010452,0.5878,84746.0,84742.0,0.24781]
[1744629010652,0.5878,84746.0,84743.0,0.0118]
[1744629010951,0.34,84746.0,84745.0,0.236002]
[1744629011426,0.0004223,84776.0,84751.0,0.247782]
[1744629011427,0.011798,84757.0,84751.0,0.247782]
[1744629011709,0.3401383,84754.0,84752.0,0.00737324]
[1744629011910,0.3401383,84754.0,84752.0,0.24335424]
[1744629012111,0.3401383,84754.0,84753.0,0.00737324]
[1744629012357,0.0001383,84754.0,84753.0,0.00737324]
[1744629012713,0.0071383,84754.0,84753.0,0.00737324]
[1744629012923,0.0031383,84754.0,84753.0,0.01677638]
[1744629013321,0.0081383,84754.0,84753.0,0.01677638]
[1744629013943,0.0051383,84754.0,84753.0,0.01677638]
[1744629014625,0.3451383,84754.0,84753.0,0.01677638]
[1744629014825,0.3501383,84754.0,84753.0,0.01677638]
[1744629015032,0.3501383,84754.0,84753.0,0.00940314]
[1744629015231,0.51917984,84754.0,84753.0,0.00940314]
[1744629015437,0.53372069,84754.0,84753.0,0.00940314]
[1744629015644,0.011802,84729.0,84726.0,0.02120514]
[1744629016011,0.23605,84728.0,84726.0,0.00940314]
[1744629016246,0.23605,84728.0,84727.0,0.0073737]
[1744629016453,0.57605,84728.0,84727.0,0.0073737]
[1744629016868,0.34,84727.0,84726.0,0.00940314]
[1744629017042,0.011803,84721.0,84718.0,0.00940314]
[1744629017251,0.236071,84720.0,84718.0,0.00940314]
[1744629017566,0.236071,84720.0,84719.0,0.00737535]
[1744629017746,0.24780555,84720.0,84719.0,0.00737535]
[1744629017984,0.24780555,84720.0,84711.0,0.002]
[1744629017985,0.236094,84712.0,84711.0,0.002]
[1744629018184,0.236094,84712.0,84711.0,0.00213848]
[1744629018387,0.236091,84713.0,84711.0,0.00213848]
[1744629018800,0.236091,84713.0,84712.0,0.00737535]
[1744629019365,0.236091,84713.0,84711.0,0.00213848]
[1744629019735,0.247895,84714.0,84711.0,0.00513848]
[1744629019983,0.247893,84714.0,84711.0,0.00513848]
[1744629020227,0.247894,84714.0,84711.0,0.01251383]
[1744629020468,0.236092,84713.0,84711.0,0.01351383]
[1744629020590,0.236092,84713.0,84711.0,0.00613848]
[1744629020785,0.236092,84713.0,84711.0,0.00513848]
[1744629021199,0.236092,84713.0,84711.0,0.00613848]
[1744629021443,0.236092,84713.0,84711.0,0.00313848]
[1744629021621,0.236092,84713.0,84711.0,0.00213848]
[1744629021823,0.236092,84713.0,84712.0,0.002]
[1744629022020,0.236092,84713.0,84711.0,0.00313848]
[1744629022240,0.236092,84713.0,84711.0,0.00513848]
[1744629022601,0.236092,84713.0,84711.0,0.00313848]
[1744629022796,0.011804,84716.0,84712.0,0.002]
[1744629022998,0.236089,84714.0,84712.0,0.002]
[1744629023436,0.236089,84714.0,84712.0,0.003]
[1744629023802,0.236089,84714.0,84712.0,0.002]
[1744629024228,0.236089,84714.0,84712.0,0.003]
[1744629024672,0.236091,84713.0,84712.0,0.003]
[1744629025040,0.236091,84713.0,84712.0,0.001]
[1744629025643,0.236091,84713.0,84712.0,0.003]
[1744629026036,0.236091,84713.0,84712.0,0.001]
[1744629026257,0.236094,84712.0,84711.0,0.00213848]
[1744629026655,0.576094,84712.0,84711.0,0.00213848]
[1744629027444,0.576094,84712.0,84711.0,0.00313848]
[1744629028035,0.576094,84712.0,84711.0,0.00413848]
[1744629028247,0.578094,84712.0,84711.0,0.00213848]
[1744629028595,0.580094,84712.0,84711.0,0.00213848]
[1744629029268,0.626294,84712.0,84711.0,0.00213848]
[1744629029564,0.74713554,84712.0,84711.0,0.00213848]
[1744629029780,0.74713554,84712.0,84698.0,8e-08]
[1744629029781,1.29764519,84712.0,84698.0,8e-08]
[1744629029956,0.62493,84699.0,84698.0,0.00046188]
[1744629030156,1.34985239,84699.0,84698.0,0.00046188]
[1744629031104,1.39765239,84699.0,84698.0,8.8e-07]
[1744629031305,2.50117239,84699.0,84698.0,8.8e-07]
[1744629031840,2.62190087,84699.0,84698.0,8.8e-07]
[1744629032188,2.62590087,84699.0,84698.0,8.8e-07]
[1744629032406,2.62190087,84699.0,84698.0,8.8e-07]
[1744629032629,2.62490087,84699.0,84698.0,8.8e-07]
[1744629032817,2.63090087,84699.0,84698.0,0.00100088]
[1744629033050,2.58210087,84699.0,84698.0,0.00100088]
[1744629033159,2.45837239,84699.0,84698.0,0.00100088]
[1744629033366,2.28484313,84699.0,84698.0,0.00100088]
[1744629033565,2.05271313,84699.0,84698.0,0.00100088]
[1744629033765,2.28019,84699.0,84698.0,0.00100088]
[1744629033974,1.28756,84699.0,84698.0,0.00100088]
[1744629034175,0.01,84699.0,84698.0,0.00100088]
[1744629034426,0.236128,84700.0,84698.0,8.8e-07]
[1744629034927,0.002,84699.0,84698.0,8.8e-07]
[1744629035150,0.236128,84700.0,84698.0,8.8e-07]
[1744629035320,0.001,84699.0,84698.0,8.8e-07]
[1744629035731,0.002,84699.0,84698.0,8.8e-07]
[1744629036145,0.237128,84700.0,84698.0,8.8e-07]
[1744629036529,0.001,84699.0,84698.0,8.8e-07]
[1744629037152,0.237128,84700.0,84698.0,8.8e-07]
[1744629037647,0.001,84699.0,84698.0,8.8e-07]
[1744629038852,0.236128,84700.0,84698.0,8.8e-07]
[1744629039031,0.001,84699.0,84698.0,8.8e-07]
[1744629040249,0.236128,84700.0,84698.0,8.8e-07]
[1744629040583,0.237128,84700.0,84698.0,8.8e-07]
[1744629040723,0.001,84699.0,84698.0,8.8e-07]
[1744629041368,0.237128,84700.0,84698.0,8.8e-07]
[1744629041734,0.238128,84700.0,84698.0,8.8e-07]
[1744629041952,0.237128,84700.0,84698.0,8.8e-07]
[1744629042161,0.23713,84699.0,84698.0,8.8e-07]
[1744629042335,0.57813,84699.0,84698.0,8.8e-07]
[1744629042535,0.69897154,84699.0,84698.0,8.8e-07]
[1744629042764,0.69797154,84699.0,84698.0,8.8e-07]
[1744629043542,0.69697154,84699.0,84698.0,8.8e-07]
[1744629044572,0.69797154,84699.0,84698.0,8.8e-07]
[1744629045363,0.69897154,84699.0,84698.0,8.8e-07]
[1744629051052,0.57813,84699.0,84698.0,8.8e-07]
[1744629051489,0.342,84699.0,84698.0,8.8e-07]
[1744629051681,0.342,84699.0,84698.0,0.23613388]
[1744629051888,0.57813,84699.0,84698.0,8.8e-07]
[1744629052088,0.342,84699.0,84698.0,8.8e-07]
[1744629052291,0.57813,84699.0,84698.0,8.8e-07]
[1744629052463,0.342,84699.0,84698.0,8.8e-07]
[1744629053235,0.342,84699.0,84698.0,0.23613388]
[1744629053435,0.342,84699.0,84698.0,8.8e-07]
[1744629054214,0.342,84699.0,84698.0,0.23613388]
[1744629055728,0.342,84699.0,84698.0,8.8e-07]
[1744629056472,0.57813,84699.0,84698.0,8.8e-07]
[1744629057186,0.342,84699.0,84698.0,0.23613388]
[1744629057575,0.342,84699.0,84698.0,8.8e-07]
[1744629057819,0.57813,84699.0,84698.0,8.8e-07]
[1744629060238,0.342,84699.0,84698.0,8.8e-07]
[1744629060438,0.57813,84699.0,84698.0,8.8e-07]
[1744629060647,0.342,84699.0,84698.0,8.8e-07]
[1744629061043,0.002,84699.0,84698.0,8.8e-07]
[1744629061245,0.002,84699.0,84698.0,0.40607542]
[1744629061766,0.002,84699.0,84698.0,0.41345201]
[1744629062135,0.001,84699.0,84698.0,0.41345201]
[1744629062488,0.001,84699.0,84698.0,0.40607542]
[1744629063077,0.34,84705.0,84704.0,0.236116]
[1744629063454,0.236121,84702.0,84698.0,0.41888142]
[1744629063673,0.011805,84703.0,84699.0,0.13264754]
[1744629063878,0.247924,84703.0,84700.0,0.236124]
[1744629064042,0.247924,84703.0,84700.0,0.24793]
[1744629064454,0.236119,84703.0,84699.0,0.247933]
[1744629065915,0.23613,84699.0,84698.0,0.04910088]
[1744629067027,0.23613,84699.0,84698.0,0.05010088]
[1744629067646,0.23613,84699.0,84698.0,0.05747771]
[1744629069496,0.011806,84701.0,84698.0,0.05747771]
[1744629069696,0.011804,84710.0,84706.0,0.011805]
[1744629069808,0.34,84709.0,84706.0,0.247913]
[1744629070007,0.34,84709.0,84706.0,0.011805]
[1744629070441,0.576103,84709.0,84706.0,0.011805]
[1744629070644,0.587908,84709.0,84706.0,0.011805]
[1744629070842,0.236105,84708.0,84706.0,0.011805]
[1744629071851,0.24791,84708.0,84705.0,0.247917]
[1744629072209,0.353805,84709.0,84705.0,0.247917]
[1744629072210,0.590907,84709.0,84706.0,0.247914]
[1744629072579,0.236107,84708.0,84705.0,0.247917]
[1744629072822,0.001,84709.0,84708.0,0.236105]
[1744629073003,0.001,84709.0,84708.0,0.283705]
[1744629073201,0.247893,84714.0,84709.0,0.247906]
[1744629073532,0.236095,84712.0,84709.0,0.011805]
[1744629073700,0.011804,84713.0,84710.0,0.01918038]
[1744629073904,0.247892,84714.0,84712.0,0.236094]
[1744629074102,0.247892,84714.0,84711.0,0.011804]
[1744629074300,0.247892,84714.0,84710.0,0.01918038]
[1744629074500,0.247892,84714.0,84712.0,0.00737638]
[1744629074501,0.011804,84713.0,84712.0,0.00737638]
[1744629074707,0.247895,84713.0,84712.0,0.00737638]
[1744629075790,0.236094,84712.0,84711.0,0.00737638]
[1744629076128,0.248895,84714.0,84711.0,0.00737638]
[1744629076267,0.236094,84712.0,84711.0,0.00737638]
[1744629076475,0.236094,84712.0,84711.0,0.01676949]
[1744629077375,0.237094,84712.0,84711.0,0.00737638]
[1744629077604,0.001,84712.0,84711.0,0.00737638]
[1744629078029,0.002,84712.0,84711.0,0.00737638]
[1744629078239,0.002,84712.0,84711.0,0.24347238]
[1744629078828,0.002,84712.0,84711.0,0.25286549]
[1744629079415,0.002,84712.0,84711.0,0.01676949]
[1744629079972,0.002,84712.0,84711.0,0.25286549]
[1744629080090,0.002,84712.0,84711.0,0.37370703]
[1744629080494,0.0004224,84733.0,84732.0,0.236038]
[1744629080698,0.0004224,84733.0,84732.0,0.281938]
[1744629080893,0.0004224,84733.0,84732.0,0.28931438]
[1744629081136,0.0004224,84733.0,84732.0,0.05327638]
[1744629081752,0.00088363,84733.0,84732.0,0.05327638]
[1744629082157,0.00288363,84733.0,84732.0,0.05327638]
[1744629082503,0.00288363,84733.0,84732.0,0.00737638]
[1744629083456,0.00288363,84733.0,84729.0,0.0093819]
[1744629083457,0.247839,84732.0,84729.0,0.0093819]
[1744629083659,0.236043,84730.0,84729.0,0.0093819]
[1744629084014,0.236051,84728.0,84726.0,0.00737638]
[1744629084214,0.236051,84728.0,84725.0,0.011802]
[1744629084215,0.236051,84728.0,84727.0,0.00737638]
[1744629084416,0.236051,84728.0,84725.0,0.01917838]
[1744629084664,0.247853,84728.0,84725.0,0.01917838]
[1744629084896,0.236052,84727.0,84725.0,0.01917838]
[1744629085098,0.236052,84727.0,84725.0,0.02856028]
[1744629085292,0.247853,84728.0,84725.0,0.26461728]
[1744629085448,0.236046,84729.0,84727.0,0.236052]
[1744629085656,0.236046,84729.0,84726.0,0.247856]
[1744629085856,0.247852,84728.0,84727.0,0.00737421]
[1744629086664,0.236055,84726.0,84724.0,0.00737421]
[1744629087002,0.236066,84722.0,84718.0,0.247878]
[1744629087149,0.236085,84715.0,84714.0,0.0494]
[1744629087351,0.011805,84708.0,84701.0,0.011806]
[1744629087555,0.236107,84707.0,84703.0,0.247924]
[1744629087944,0.011805,84708.0,84705.0,0.236113]
[1744629088308,0.247908,84709.0,84705.0,0.247918]
[1744629088708,0.24836895,84709.0,84706.0,0.00737546]
[1744629088928,0.24836895,84709.0,84706.0,0.25286361]
[1744629089247,0.24836895,84709.0,84707.0,0.00737546]
[1744629089604,0.00046095,84709.0,84708.0,0.236105]
[1744629090336,0.00046095,84709.0,84708.0,0.24348046]
[1744629090857,0.00046095,84709.0,84708.0,0.25585861]
[1744629091211,0.00046095,84709.0,84708.0,0.25785861]
[1744629093111,0.00046095,84709.0,84708.0,0.02175361]
[1744629093317,0.00046095,84709.0,84708.0,0.25785861]